[Event "December 5 Late 2023"]
[Site "https://www.chess.com"]
[Date "2023.12.05"]
[Round "6"]
[White "Demchenko, Anton"]
[Black "Mendez Fortes, Eduardo Jesus"]
[Result "1-0"]
[Board "25"]
[TimeControl "180+1"]
[WhiteFideId "4160258"]
[BlackFideId "3502376"]
[WhiteElo "2894"]
[BlackElo "2591"]
[WhiteTeam "SLO"]
[BlackTeam "CUB"]
[WhiteClock "0:00:07"]
[BlackClock "0:00:03"]

1. e4 {[%clk 0:02:57]}  c5 {[%clk 0:02:56]} 2. Nc3 {[%clk 0:02:56]}  d6 {[%clk 0:02:57]} 3. Bb5+ {[%clk 0:02:55]}  Bd7 {[%clk 0:02:56]} 4. a4 {[%clk 0:02:56]}  g6 {[%clk 0:02:56]} 5. f4 {[%clk 0:02:56]}  Bg7 {[%clk 0:02:57]} 6. Nf3 {[%clk 0:02:57]}  a6 {[%clk 0:02:57]} 7. Bxd7+ {[%clk 0:02:55]}  Qxd7 {[%clk 0:02:57]} 8. Nd5 {[%clk 0:02:55]}  Qd8 {[%clk 0:02:57]} 9. a5 {[%clk 0:02:54]}  Nd7 {[%clk 0:02:56]} 10. O-O {[%clk 0:02:53]}  e6 {[%clk 0:02:55]} 11. Ne3 {[%clk 0:02:53]}  Ne7 {[%clk 0:02:55]} 12. d3 {[%clk 0:02:53]}  O-O {[%clk 0:02:48]} 13. Qe1 {[%clk 0:02:52]}  f5 {[%clk 0:02:47]} 14. Ng5 {[%clk 0:02:49]}  Rf6 {[%clk 0:02:42]} 15. Nc4 {[%clk 0:02:19]}  h6 {[%clk 0:02:40]} 16. e5 {[%clk 0:02:13]}  dxe5 {[%clk 0:02:24]} 17. fxe5 {[%clk 0:02:14]}  Nxe5 {[%clk 0:01:56]} 18. Nxe5 {[%clk 0:02:14]}  hxg5 {[%clk 0:01:56]} 19. Bxg5 {[%clk 0:02:14]}  Qd4+ {[%clk 0:01:52]} 20. Kh1 {[%clk 0:02:13]}  Rff8 {[%clk 0:01:12]} 21. Nc4 {[%clk 0:01:55]}  Kf7 {[%clk 0:01:02]} 22. Ra4 {[%clk 0:01:43]}  Rad8 {[%clk 0:00:29]} 23. Qe2 {[%clk 0:01:12]}  Rde8 {[%clk 0:00:20]} 24. b4 {[%clk 0:00:56]}  Qd7 {[%clk 0:00:19]} 25. Nb6 {[%clk 0:00:51]}  Qc6 {[%clk 0:00:19]} 26. bxc5 {[%clk 0:00:49]}  Nd5 {[%clk 0:00:20]} 27. Qf3 {[%clk 0:00:29]}  Rh8 {[%clk 0:00:19]} 28. h3 {[%clk 0:00:28]}  Be5 {[%clk 0:00:17]} 29. d4 {[%clk 0:00:27]}  Bb8 {[%clk 0:00:17]} 30. Nxd5 {[%clk 0:00:18]}  Qxa4 {[%clk 0:00:15]} 31. Nf4 {[%clk 0:00:14]}  Qc6 {[%clk 0:00:13]} 32. Qg3 {[%clk 0:00:12]}  Qc7 {[%clk 0:00:11]} 33. c3 {[%clk 0:00:11]}  Rhg8 {[%clk 0:00:10]} 34. Rb1 {[%clk 0:00:10]}  Qc6 {[%clk 0:00:10]} 35. Qf3 {[%clk 0:00:08]}  Rg7 {[%clk 0:00:08]} 36. Rxb7+ {[%clk 0:00:07]}  Qxb7 {[%clk 0:00:07]} 37. Qxb7+ {[%clk 0:00:07]}  Kg8 {[%clk 0:00:08]} 38. Qc6 {[%clk 0:00:07]}  Rf8 {[%clk 0:00:08]} 39. Qxe6+ {[%clk 0:00:07]}  Kh8 {[%clk 0:00:08]} 40. Qe2 {[%clk 0:00:06]}  Kg8 {[%clk 0:00:06]} 41. Ne6 {[%clk 0:00:06]}  Re8 {[%clk 0:00:07]} 42. d5 {[%clk 0:00:06]}  Rd7 {[%clk 0:00:07]} 43. c4 {[%clk 0:00:06]}  Kf7 {[%clk 0:00:07]} 44. c6 {[%clk 0:00:06]}  Rd6 {[%clk 0:00:03]} 45. Qb2 {[%clk 0:00:07]} 1-0

[Event "December 5 Late 2023"]
[Site "https://www.chess.com"]
[Date "2023.12.05"]
[Round "6"]
[White "Bolourchifard, Farzad"]
[Black "Hakobyan, Aram"]
[Result "0-1"]
[Board "28"]
[TimeControl "180+1"]
[WhiteFideId "12510084"]
[BlackFideId "13306677"]
[WhiteElo "2709"]
[BlackElo "3003"]
[WhiteTeam "IRI"]
[BlackTeam "ARM"]
[WhiteClock "0:00:11"]
[BlackClock "0:00:25"]

1. d4 {[%clk 0:03:00]}  Nf6 {[%clk 0:03:00]} 2. Nf3 {[%clk 0:03:01]}  d5 {[%clk 0:02:59]} 3. c4 {[%clk 0:03:01]}  e6 {[%clk 0:02:59]} 4. Nc3 {[%clk 0:03:01]}  Nbd7 {[%clk 0:02:59]} 5. Bg5 {[%clk 0:03:02]}  Bb4 {[%clk 0:02:58]} 6. e3 {[%clk 0:03:02]}  h6 {[%clk 0:02:58]} 7. Bh4 {[%clk 0:03:01]}  c5 {[%clk 0:02:58]} 8. cxd5 {[%clk 0:03:00]}  exd5 {[%clk 0:02:55]} 9. Be2 {[%clk 0:02:50]}  g5 {[%clk 0:02:53]} 10. Bg3 {[%clk 0:02:49]}  Ne4 {[%clk 0:02:54]} 11. O-O {[%clk 0:02:49]}  Bxc3 {[%clk 0:02:51]} 12. bxc3 {[%clk 0:02:49]}  Nxc3 {[%clk 0:02:52]} 13. Qc2 {[%clk 0:02:49]}  Nxe2+ {[%clk 0:02:53]} 14. Qxe2 {[%clk 0:02:50]}  c4 {[%clk 0:02:35]} 15. e4 {[%clk 0:02:27]}  Qe7 {[%clk 0:02:35]} 16. Ne5 {[%clk 0:02:26]}  Nxe5 {[%clk 0:01:52]} 17. dxe5 {[%clk 0:02:12]}  Be6 {[%clk 0:01:51]} 18. exd5 {[%clk 0:02:07]}  Bxd5 {[%clk 0:01:52]} 19. Rfd1 {[%clk 0:02:01]}  Rd8 {[%clk 0:01:49]} 20. Rd4 {[%clk 0:01:49]}  O-O {[%clk 0:01:32]} 21. Rad1 {[%clk 0:01:25]}  Be6 {[%clk 0:01:28]} 22. Rd6 {[%clk 0:01:25]}  c3 {[%clk 0:01:06]} 23. h4 {[%clk 0:01:01]}  gxh4 {[%clk 0:00:46]} 24. Bf4 {[%clk 0:01:01]}  Rxd6 {[%clk 0:00:47]} 25. exd6 {[%clk 0:01:01]}  Qf6 {[%clk 0:00:46]} 26. Be5 {[%clk 0:00:59]}  Qg5 {[%clk 0:00:34]} 27. Bxc3 {[%clk 0:00:19]}  h3 {[%clk 0:00:34]} 28. f4 {[%clk 0:00:17]}  Qg6 {[%clk 0:00:21]} 29. d7 {[%clk 0:00:12]}  Rd8 {[%clk 0:00:21]} 30. Kh2 {[%clk 0:00:07]}  Qxg2+ {[%clk 0:00:12]} 31. Qxg2+ {[%clk 0:00:08]}  hxg2 {[%clk 0:00:13]} 32. Kxg2 {[%clk 0:00:08]}  Rxd7 {[%clk 0:00:13]} 33. Rxd7 {[%clk 0:00:08]}  Bxd7 {[%clk 0:00:14]} 34. a3 {[%clk 0:00:08]}  Kh7 {[%clk 0:00:13]} 35. Bd4 {[%clk 0:00:09]}  a6 {[%clk 0:00:13]} 36. Bb6 {[%clk 0:00:09]}  Kg6 {[%clk 0:00:13]} 37. Kf3 {[%clk 0:00:10]}  Kf5 {[%clk 0:00:14]} 38. Bd4 {[%clk 0:00:10]}  h5 {[%clk 0:00:14]} 39. Ke3 {[%clk 0:00:10]}  Bc6 {[%clk 0:00:15]} 40. Bc5 {[%clk 0:00:10]}  h4 {[%clk 0:00:16]} 41. Bb4 {[%clk 0:00:10]}  h3 {[%clk 0:00:16]} 42. Kf2 {[%clk 0:00:09]}  Kxf4 {[%clk 0:00:17]} 43. Bd6+ {[%clk 0:00:08]}  Kg4 {[%clk 0:00:18]} 44. Ke3 {[%clk 0:00:08]}  f5 {[%clk 0:00:19]} 45. Bc7 {[%clk 0:00:08]}  b5 {[%clk 0:00:19]} 46. Bd6 {[%clk 0:00:08]}  a5 {[%clk 0:00:20]} 47. Bc7 {[%clk 0:00:09]}  b4 {[%clk 0:00:20]} 48. axb4 {[%clk 0:00:09]}  axb4 {[%clk 0:00:21]} 49. Be5 {[%clk 0:00:10]}  b3 {[%clk 0:00:22]} 50. Kd2 {[%clk 0:00:10]}  Be4 {[%clk 0:00:23]} 51. Ke3 {[%clk 0:00:10]}  b2 {[%clk 0:00:23]} 52. Bxb2 {[%clk 0:00:11]}  h2 {[%clk 0:00:24]} 53. Kf2 {[%clk 0:00:11]}  h1=Q {[%clk 0:00:24]} 54. Ke3 {[%clk 0:00:11]}  Qf3+ {[%clk 0:00:25]} 0-1

[Event "December 5 Late 2023"]
[Site "https://www.chess.com"]
[Date "2023.12.05"]
[Round "6"]
[White "Henriquez Villagra, Cristobal"]
[Black "Panesar Vedant"]
[Result "1-0"]
[Board "29"]
[TimeControl "180+1"]
[WhiteFideId "3409350"]
[BlackFideId "35033018"]
[WhiteElo "2991"]
[BlackElo "2704"]
[WhiteTeam "CHI"]
[BlackTeam "IND"]
[WhiteClock "0:00:46"]
[BlackClock "0:00:00"]

1. g3 {[%clk 0:02:57]}  d5 {[%clk 0:03:00]} 2. Bg2 {[%clk 0:02:55]}  Nf6 {[%clk 0:02:58]} 3. f4 {[%clk 0:02:54]}  c5 {[%clk 0:02:58]} 4. Nf3 {[%clk 0:02:55]}  g6 {[%clk 0:02:59]} 5. O-O {[%clk 0:02:56]}  Bg7 {[%clk 0:03:00]} 6. d3 {[%clk 0:02:56]}  O-O {[%clk 0:03:00]} 7. Nbd2 {[%clk 0:02:57]}  Nc6 {[%clk 0:03:01]} 8. e4 {[%clk 0:02:58]}  dxe4 {[%clk 0:02:55]} 9. dxe4 {[%clk 0:02:58]}  e5 {[%clk 0:02:55]} 10. c3 {[%clk 0:02:50]}  Qd3 {[%clk 0:02:51]} 11. Re1 {[%clk 0:02:41]}  Bg4 {[%clk 0:02:45]} 12. h3 {[%clk 0:02:32]}  Bxf3 {[%clk 0:02:35]} 13. Qxf3 {[%clk 0:02:30]}  Qxf3 {[%clk 0:02:30]} 14. Bxf3 {[%clk 0:02:31]}  Rfe8 {[%clk 0:02:29]} 15. Nc4 {[%clk 0:02:30]}  Rad8 {[%clk 0:02:23]} 16. a4 {[%clk 0:02:29]}  exf4 {[%clk 0:02:09]} 17. Bxf4 {[%clk 0:02:23]}  Nd7 {[%clk 0:01:55]} 18. Rad1 {[%clk 0:01:28]}  Nde5 {[%clk 0:01:53]} 19. Be2 {[%clk 0:01:29]}  h6 {[%clk 0:01:45]} 20. Kg2 {[%clk 0:01:19]}  Kh7 {[%clk 0:01:33]} 21. Ne3 {[%clk 0:01:15]}  Rxd1 {[%clk 0:01:16]} 22. Rxd1 {[%clk 0:01:15]}  g5 {[%clk 0:01:15]} 23. Bxe5 {[%clk 0:01:13]}  Bxe5 {[%clk 0:01:16]} 24. Rd7 {[%clk 0:01:08]}  Re7 {[%clk 0:01:14]} 25. Rd5 {[%clk 0:01:09]}  Bc7 {[%clk 0:00:52]} 26. Nf5 {[%clk 0:00:56]}  Rxe4 {[%clk 0:00:13]} 27. Bd3 {[%clk 0:00:56]}  Re5 {[%clk 0:00:10]} 28. Rd7 {[%clk 0:00:54]}  Bb6 {[%clk 0:00:05]} 29. Rxf7+ {[%clk 0:00:47]}  Kg6 {[%clk 0:00:05]} 30. Nd6+ {[%clk 0:00:47]}  Kh5 {[%clk 0:00:02]} 31. g4+ {[%clk 0:00:45]}  Kh4 {[%clk 0:00:02]} 32. Rf6 {[%clk 0:00:46]}  h5 {[%clk 0:00:00]} 33. Rh6 {[%clk 0:00:46]} 1-0

[Event "December 5 Late 2023"]
[Site "https://www.chess.com"]
[Date "2023.12.05"]
[Round "6"]
[White "Grigoriants, Sergey"]
[Black "Sahakyan, Aleks"]
[Result "1-0"]
[Board "30"]
[TimeControl "180+1"]
[WhiteFideId "4130804"]
[BlackFideId "13316338"]
[WhiteElo "2924"]
[BlackElo "2701"]
[WhiteTeam "HUN"]
[BlackTeam "ARM"]
[WhiteClock "0:00:29"]
[BlackClock "0:00:03"]

1. d4 {[%clk 0:02:52]}  Nf6 {[%clk 0:02:58]} 2. c4 {[%clk 0:02:51]}  c5 {[%clk 0:02:57]} 3. d5 {[%clk 0:02:50]}  b5 {[%clk 0:02:56]} 4. Qc2 {[%clk 0:02:51]}  d6 {[%clk 0:02:52]} 5. e4 {[%clk 0:02:51]}  g6 {[%clk 0:02:51]} 6. cxb5 {[%clk 0:02:48]}  Bg7 {[%clk 0:02:49]} 7. Nc3 {[%clk 0:02:47]}  O-O {[%clk 0:02:46]} 8. Nf3 {[%clk 0:02:47]}  a6 {[%clk 0:02:46]} 9. bxa6 {[%clk 0:02:26]}  Nxa6 {[%clk 0:02:47]} 10. Be2 {[%clk 0:02:21]}  Nb4 {[%clk 0:02:40]} 11. Qd1 {[%clk 0:02:20]}  Ba6 {[%clk 0:02:32]} 12. O-O {[%clk 0:02:19]}  Nd7 {[%clk 0:02:24]} 13. a3 {[%clk 0:02:00]}  Bxe2 {[%clk 0:02:22]} 14. Qxe2 {[%clk 0:01:59]}  Na6 {[%clk 0:02:22]} 15. Bg5 {[%clk 0:01:53]}  h6 {[%clk 0:02:18]} 16. Bf4 {[%clk 0:01:47]}  Qb6 {[%clk 0:02:07]} 17. Rad1 {[%clk 0:01:41]}  Rfb8 {[%clk 0:02:06]} 18. Rd2 {[%clk 0:01:41]}  Nc7 {[%clk 0:02:06]} 19. e5 {[%clk 0:01:24]}  g5 {[%clk 0:01:16]} 20. Bg3 {[%clk 0:01:11]}  g4 {[%clk 0:01:16]} 21. Nh4 {[%clk 0:01:11]}  Nxe5 {[%clk 0:01:13]} 22. Nf5 {[%clk 0:01:11]}  Ng6 {[%clk 0:01:04]} 23. Qxg4 {[%clk 0:01:05]}  Ne8 {[%clk 0:00:55]} 24. h4 {[%clk 0:01:02]}  Nf6 {[%clk 0:00:55]} 25. Qf3 {[%clk 0:01:02]}  h5 {[%clk 0:00:53]} 26. Re1 {[%clk 0:01:02]}  Bf8 {[%clk 0:00:53]} 27. Nxd6 {[%clk 0:00:57]}  exd6 {[%clk 0:00:51]} 28. Qxf6 {[%clk 0:00:57]}  Re8 {[%clk 0:00:42]} 29. Rde2 {[%clk 0:00:57]}  Rxe2 {[%clk 0:00:37]} 30. Rxe2 {[%clk 0:00:58]}  Rd8 {[%clk 0:00:27]} 31. Qg5 {[%clk 0:00:56]}  Bg7 {[%clk 0:00:21]} 32. Qxh5 {[%clk 0:00:55]}  Qa6 {[%clk 0:00:20]} 33. Qg4 {[%clk 0:00:52]}  Kf8 {[%clk 0:00:15]} 34. h5 {[%clk 0:00:48]}  Ne5 {[%clk 0:00:16]} 35. Qg5 {[%clk 0:00:44]}  f6 {[%clk 0:00:11]} 36. Qf5 {[%clk 0:00:40]}  Nf7 {[%clk 0:00:11]} 37. Re6 {[%clk 0:00:36]}  Qc4 {[%clk 0:00:10]} 38. Ne4 {[%clk 0:00:34]}  Qc1+ {[%clk 0:00:10]} 39. Kh2 {[%clk 0:00:34]}  Qh6 {[%clk 0:00:10]} 40. Nxf6 {[%clk 0:00:30]}  Qg5 {[%clk 0:00:03]} 41. Nh7+ {[%clk 0:00:29]} 1-0

[Event "December 5 Late 2023"]
[Site "https://www.chess.com"]
[Date "2023.12.05"]
[Round "6"]
[White "Mendes Aaron Reeve"]
[Black "Hong, Andrew"]
[Result "1-0"]
[Board "32"]
[TimeControl "180+1"]
[WhiteFideId "25954938"]
[BlackFideId "2099438"]
[WhiteElo "2626"]
[BlackElo "2855"]
[WhiteTeam "CAN"]
[BlackTeam "USA"]
[WhiteClock "0:01:24"]
[BlackClock "0:00:01"]

1. e4 {[%clk 0:03:00]}  Nc6 {[%clk 0:02:54]} 2. d4 {[%clk 0:02:59]}  d5 {[%clk 0:02:54]} 3. e5 {[%clk 0:02:59]}  f6 {[%clk 0:02:54]} 4. f4 {[%clk 0:02:58]}  Bf5 {[%clk 0:02:54]} 5. Nf3 {[%clk 0:02:58]}  e6 {[%clk 0:02:51]} 6. Bd3 {[%clk 0:02:53]}  Nh6 {[%clk 0:02:48]} 7. c3 {[%clk 0:02:53]}  Be7 {[%clk 0:02:47]} 8. O-O {[%clk 0:02:54]}  O-O {[%clk 0:02:47]} 9. Bb5 {[%clk 0:02:53]}  fxe5 {[%clk 0:02:42]} 10. Bxc6 {[%clk 0:02:51]}  bxc6 {[%clk 0:02:41]} 11. Nxe5 {[%clk 0:02:51]}  c5 {[%clk 0:02:42]} 12. Be3 {[%clk 0:02:46]}  c4 {[%clk 0:02:22]} 13. b3 {[%clk 0:02:34]}  cxb3 {[%clk 0:01:59]} 14. axb3 {[%clk 0:02:35]}  Bd6 {[%clk 0:01:53]} 15. Nd2 {[%clk 0:02:28]}  a5 {[%clk 0:01:39]} 16. Ndf3 {[%clk 0:02:25]}  Qe8 {[%clk 0:01:38]} 17. h3 {[%clk 0:02:23]}  Be4 {[%clk 0:01:37]} 18. g4 {[%clk 0:02:21]}  Qb5 {[%clk 0:01:10]} 19. c4 {[%clk 0:02:13]}  dxc4 {[%clk 0:01:08]} 20. bxc4 {[%clk 0:02:14]}  Qb7 {[%clk 0:01:07]} 21. Ng5 {[%clk 0:02:07]}  Bxe5 {[%clk 0:00:58]} 22. fxe5 {[%clk 0:02:05]}  Rxf1+ {[%clk 0:00:56]} 23. Qxf1 {[%clk 0:02:04]}  Rf8 {[%clk 0:00:50]} 24. Qe2 {[%clk 0:01:59]}  Bc6 {[%clk 0:00:35]} 25. Nxe6 {[%clk 0:01:57]}  Rf3 {[%clk 0:00:34]} 26. d5 {[%clk 0:01:43]}  Rxh3 {[%clk 0:00:20]} 27. Bxh6 {[%clk 0:01:32]}  Rxh6 {[%clk 0:00:10]} 28. Qf2 {[%clk 0:01:29]}  Qc8 {[%clk 0:00:04]} 29. Rf1 {[%clk 0:01:25]}  Qxe6 {[%clk 0:00:01]} 30. Qf8# {[%clk 0:01:24]} 1-0

[Event "December 5 Late 2023"]
[Site "https://www.chess.com"]
[Date "2023.12.05"]
[Round "6"]
[White "Bardyk, Artem"]
[Black "Tanriverdi, Enes"]
[Result "1-0"]
[Board "33"]
[TimeControl "180+1"]
[WhiteFideId "34349979"]
[BlackFideId "34543279"]
[WhiteElo "2853"]
[BlackElo "2632"]
[WhiteTeam "RUS"]
[BlackTeam "TUR"]
[WhiteClock "0:00:04"]
[BlackClock "0:00:04"]

1. e4 {[%clk 0:03:00]}  c5 {[%clk 0:02:58]} 2. c3 {[%clk 0:03:00]}  d6 {[%clk 0:02:59]} 3. d4 {[%clk 0:03:00]}  Nf6 {[%clk 0:02:59]} 4. Bd3 {[%clk 0:03:00]}  cxd4 {[%clk 0:02:58]} 5. cxd4 {[%clk 0:03:00]}  Nc6 {[%clk 0:02:59]} 6. Nf3 {[%clk 0:03:01]}  g6 {[%clk 0:02:59]} 7. O-O {[%clk 0:03:00]}  Bg7 {[%clk 0:03:00]} 8. Nc3 {[%clk 0:03:01]}  O-O {[%clk 0:03:00]} 9. h3 {[%clk 0:03:01]}  e5 {[%clk 0:02:57]} 10. Be3 {[%clk 0:03:00]}  Nh5 {[%clk 0:02:54]} 11. dxe5 {[%clk 0:02:56]}  dxe5 {[%clk 0:02:53]} 12. Bc4 {[%clk 0:02:54]}  Nd4 {[%clk 0:02:50]} 13. Bxd4 {[%clk 0:02:47]}  exd4 {[%clk 0:02:49]} 14. Nb5 {[%clk 0:02:47]}  Qb6 {[%clk 0:02:42]} 15. e5 {[%clk 0:02:02]}  Be6 {[%clk 0:02:22]} 16. Bxe6 {[%clk 0:01:59]}  Qxb5 {[%clk 0:02:21]} 17. Bb3 {[%clk 0:01:51]}  Rad8 {[%clk 0:02:08]} 18. Re1 {[%clk 0:01:45]}  d3 {[%clk 0:02:00]} 19. a4 {[%clk 0:01:26]}  Qa5 {[%clk 0:01:54]} 20. Re4 {[%clk 0:01:12]}  Bh6 {[%clk 0:00:44]} 21. g4 {[%clk 0:00:36]}  Nf4 {[%clk 0:00:43]} 22. g5 {[%clk 0:00:37]}  Ne2+ {[%clk 0:00:43]} 23. Kg2 {[%clk 0:00:31]}  Bg7 {[%clk 0:00:42]} 24. Qd2 {[%clk 0:00:21]}  Qb6 {[%clk 0:00:23]} 25. Rb4 {[%clk 0:00:16]}  Qc6 {[%clk 0:00:23]} 26. Rc4 {[%clk 0:00:10]}  Qd5 {[%clk 0:00:19]} 27. Rd1 {[%clk 0:00:06]}  a6 {[%clk 0:00:16]} 28. Rc3 {[%clk 0:00:05]}  Qd7 {[%clk 0:00:06]} 29. Rc4 {[%clk 0:00:05]}  Qf5 {[%clk 0:00:06]} 30. Qe3 {[%clk 0:00:03]}  b5 {[%clk 0:00:05]} 31. axb5 {[%clk 0:00:04]}  axb5 {[%clk 0:00:06]} 32. Re4 {[%clk 0:00:04]}  Rfe8 {[%clk 0:00:05]} 33. Rxd3 {[%clk 0:00:04]}  Rxd3 {[%clk 0:00:05]} 34. Qxd3 {[%clk 0:00:01]}  Nf4+ {[%clk 0:00:05]} 35. Rxf4 {[%clk 0:00:02]}  Qxd3 {[%clk 0:00:05]} 36. Bxf7+ {[%clk 0:00:03]}  Kf8 {[%clk 0:00:02]} 37. Bxg6+ {[%clk 0:00:03]}  Ke7 {[%clk 0:00:02]} 38. Bxd3 {[%clk 0:00:03]}  b4 {[%clk 0:00:02]} 39. Bc4 {[%clk 0:00:03]}  Rd8 {[%clk 0:00:03]} 40. Rf7+ {[%clk 0:00:03]}  Ke8 {[%clk 0:00:04]} 41. Rxg7 {[%clk 0:00:04]}  Rd1 {[%clk 0:00:04]} 42. e6 {[%clk 0:00:04]}  Rb1 {[%clk 0:00:05]} 43. Bb5+ {[%clk 0:00:03]}  Kd8 {[%clk 0:00:04]} 44. e7+ {[%clk 0:00:04]} 1-0

[Event "December 5 Late 2023"]
[Site "https://www.chess.com"]
[Date "2023.12.05"]
[Round "6"]
[White "Rangel, Daniel"]
[Black "Galaktionov, Artem"]
[Result "0-1"]
[Board "35"]
[TimeControl "180+1"]
[WhiteFideId "2124475"]
[BlackFideId "24175471"]
[WhiteElo "2560"]
[BlackElo "2845"]
[WhiteTeam "BRA"]
[BlackTeam "RUS"]
[WhiteClock "0:00:00"]
[BlackClock "0:00:53"]

1. c4 {[%clk 0:03:00]}  c6 {[%clk 0:02:59]} 2. d4 {[%clk 0:02:59]}  g6 {[%clk 0:03:00]} 3. Nc3 {[%clk 0:02:58]}  d6 {[%clk 0:03:00]} 4. Nf3 {[%clk 0:02:56]}  Bg7 {[%clk 0:03:01]} 5. g3 {[%clk 0:02:57]}  Nd7 {[%clk 0:03:00]} 6. Bg2 {[%clk 0:02:57]}  Ngf6 {[%clk 0:03:01]} 7. O-O {[%clk 0:02:57]}  O-O {[%clk 0:03:02]} 8. e4 {[%clk 0:02:54]}  e5 {[%clk 0:03:02]} 9. Re1 {[%clk 0:02:55]}  a5 {[%clk 0:03:01]} 10. h3 {[%clk 0:02:54]}  exd4 {[%clk 0:03:00]} 11. Nxd4 {[%clk 0:02:54]}  Nc5 {[%clk 0:03:01]} 12. Be3 {[%clk 0:02:54]}  Re8 {[%clk 0:03:00]} 13. Qc2 {[%clk 0:02:54]}  a4 {[%clk 0:02:59]} 14. Rad1 {[%clk 0:02:54]}  Qa5 {[%clk 0:02:59]} 15. a3 {[%clk 0:02:38]}  Bd7 {[%clk 0:02:56]} 16. f4 {[%clk 0:02:21]}  h5 {[%clk 0:02:55]} 17. Bf2 {[%clk 0:02:18]}  Re7 {[%clk 0:02:51]} 18. f5 {[%clk 0:02:13]}  Rae8 {[%clk 0:02:46]} 19. fxg6 {[%clk 0:02:10]}  fxg6 {[%clk 0:02:47]} 20. b4 {[%clk 0:01:33]}  axb3 {[%clk 0:02:45]} 21. Nxb3 {[%clk 0:01:33]}  Qxa3 {[%clk 0:02:22]} 22. Nxc5 {[%clk 0:01:32]}  dxc5 {[%clk 0:02:23]} 23. Na4 {[%clk 0:01:12]}  Re5 {[%clk 0:01:58]} 24. Kh2 {[%clk 0:01:00]}  Be6 {[%clk 0:01:44]} 25. Bf1 {[%clk 0:00:30]}  Bf7 {[%clk 0:01:18]} 26. Ra1 {[%clk 0:00:27]}  Qb4 {[%clk 0:01:18]} 27. Reb1 {[%clk 0:00:27]}  Qa5 {[%clk 0:01:17]} 28. Nb6 {[%clk 0:00:27]}  Qxa1 {[%clk 0:01:12]} 29. Rxa1 {[%clk 0:00:28]}  Nxe4 {[%clk 0:01:13]} 30. Ra8 {[%clk 0:00:26]}  Rxa8 {[%clk 0:01:06]} 31. Nxa8 {[%clk 0:00:27]}  Nxf2 {[%clk 0:01:05]} 32. Qxf2 {[%clk 0:00:28]}  Rf5 {[%clk 0:01:03]} 33. Qe2 {[%clk 0:00:24]}  Bd4 {[%clk 0:01:00]} 34. Kg2 {[%clk 0:00:20]}  b5 {[%clk 0:00:58]} 35. cxb5 {[%clk 0:00:19]}  cxb5 {[%clk 0:00:59]} 36. Qxb5 {[%clk 0:00:18]}  Rf2+ {[%clk 0:00:58]} 37. Kg1 {[%clk 0:00:16]}  Rb2+ {[%clk 0:00:54]} 38. Kh1 {[%clk 0:00:00]}  Bd5+ {[%clk 0:00:53]} 0-1

[Event "December 5 Late 2023"]
[Site "https://www.chess.com"]
[Date "2023.12.05"]
[Round "6"]
[White "Troff, Kayden"]
[Black "Petukhov, Dmitry"]
[Result "0-1"]
[Board "36"]
[TimeControl "180+1"]
[WhiteFideId "2047896"]
[BlackFideId "4142748"]
[WhiteElo "2793"]
[BlackElo "2539"]
[WhiteTeam "USA"]
[BlackTeam "RUS"]
[WhiteClock "0:01:47"]
[BlackClock "0:01:44"]

1. d4 {[%clk 0:03:00]}  Nf6 {[%clk 0:02:59]} 2. c4 {[%clk 0:03:01]}  g6 {[%clk 0:03:00]} 3. Nc3 {[%clk 0:03:00]}  d5 {[%clk 0:03:00]} 4. Qb3 {[%clk 0:02:59]}  dxc4 {[%clk 0:03:00]} 5. Qxc4 {[%clk 0:03:00]}  Bg7 {[%clk 0:03:00]} 6. e4 {[%clk 0:03:01]}  O-O {[%clk 0:03:01]} 7. Be2 {[%clk 0:03:01]}  a6 {[%clk 0:02:59]} 8. Bf4 {[%clk 0:03:01]}  b5 {[%clk 0:02:57]} 9. Qxc7 {[%clk 0:03:01]}  Qxc7 {[%clk 0:02:55]} 10. Bxc7 {[%clk 0:03:02]}  Bb7 {[%clk 0:02:54]} 11. f3 {[%clk 0:03:00]}  Nc6 {[%clk 0:02:29]} 12. d5 {[%clk 0:02:56]}  Nb4 {[%clk 0:02:28]} 13. Rc1 {[%clk 0:02:51]}  Bh6 {[%clk 0:02:20]} 14. Rd1 {[%clk 0:02:21]}  Rac8 {[%clk 0:02:19]} 15. Be5 {[%clk 0:02:15]}  Nc2+ {[%clk 0:02:10]} 16. Kf2 {[%clk 0:02:16]}  Be3+ {[%clk 0:02:10]} 17. Kg3 {[%clk 0:02:16]}  Nh5+ {[%clk 0:02:06]} 18. Kh3 {[%clk 0:02:13]}  f6 {[%clk 0:01:48]} 19. Bg3 {[%clk 0:02:13]}  Rxc3 {[%clk 0:01:45]} 20. bxc3 {[%clk 0:01:46]}  Bc8+ {[%clk 0:01:45]} 21. Kh4 {[%clk 0:01:47]}  Bg5# {[%clk 0:01:44]} 0-1